Body Name,Body,Service Level,Expense Type,Expense Code,Narrative,Date,Transaction Number,Amount,Capital and Revenue,Supplier Name,Supplier ID
South Ribble Council,http://statistics.data.gov.uk/doc/local-authority/30UN,Area 2 - Waste Transport/Eastern & Central Teams,External Contractors Charges,4570,SPEC REPAIR - PJ62UCM - JFC15232,04/09/2020,0000458531,434.22,Revenue,A C HYDRAULIC & PNEUMATIC SERVICES LTD,00093062
South Ribble Council,http://statistics.data.gov.uk/doc/local-authority/30UN,Area 2 - Waste Transport/Eastern & Central Teams,Materials General,4040,1 x caliper PJ62UCM JFC15212,04/09/2020,0000458509,348.00,Revenue,AA UK CV t/a Hydrair Truck & Trailer,132664
South Ribble Council,http://statistics.data.gov.uk/doc/local-authority/30UN,Regeneration,Capital Expenditure,C230,Description : Shruggs wood improvement scheme payment 2 of 3 excluding tarmac surfacing. as per NAME REDACTED instruction,09/09/2020,0000458466,"28,845.70",Revenue,ALBEN LANDSCAPES,00105921
South Ribble Council,http://statistics.data.gov.uk/doc/local-authority/30UN,Property Services,Rep & Maint Premises,2020,"Please undertake a survey and repair of Display Greenhouse House, Worden Park, Leyland as per your ref MD20/01 Worden Park",16/09/2020,0000458673,"5,750.00",Revenue,Alitex Ltd,132080
South Ribble Council,http://statistics.data.gov.uk/doc/local-authority/30UN,Revenues Plus,Financial,4811,post office,09/09/2020,0000458595,646.50,Revenue,ALLPAY LTD,00122276
South Ribble Council,http://statistics.data.gov.uk/doc/local-authority/30UN,Revenues Plus,Financial,4811,paypoint,09/09/2020,0000458595,78.00,Revenue,ALLPAY LTD,00122276
South Ribble Council,http://statistics.data.gov.uk/doc/local-authority/30UN,Revenues Plus,Financial,4811,webconnect,09/09/2020,0000458595,46.00,Revenue,ALLPAY LTD,00122276
South Ribble Council,http://statistics.data.gov.uk/doc/local-authority/30UN,Area 2 - Waste Transport/Eastern & Central Teams,Cap Vehicles,C440,"For 2 x Kangoo Maxi ZE vans, with Air / Con and Rear sensors, as per quote reference 283859.",25/09/2020,0000458996,"20,773.05",Revenue,Arnold Clark Automobiles Ltd,133114
South Ribble Council,http://statistics.data.gov.uk/doc/local-authority/30UN,Area 2 - Waste Transport/Eastern & Central Teams,Cap Vehicles,C440,PICG,25/09/2020,0000458996,"-4,578.73",Revenue,Arnold Clark Automobiles Ltd,133114
South Ribble Council,http://statistics.data.gov.uk/doc/local-authority/30UN,Area 2 - Waste Transport/Eastern & Central Teams,Cap Vehicles,C440,1st Reg Fee,25/09/2020,0000458996,55.00,Revenue,Arnold Clark Automobiles Ltd,133114
South Ribble Council,http://statistics.data.gov.uk/doc/local-authority/30UN,Housing,Capital Expenditure,C230,"conversion works and create 9 self contained flats as tendered at Pearson House, Station Road, Bamber Bridge, work to commence 1st June 2020",04/09/2020,0000458500,"24,800.00",Revenue,ASH BARN CONSTRUCTION LTD,00081278
South Ribble Council,http://statistics.data.gov.uk/doc/local-authority/30UN,Housing,Cap Grant- Improve Grants,C570,DFG WORKS TO BATHROOM AND RAMP AT ADDRESS REDACTED PER QUOTE SUPPIED FOR SRBC PLANS OF 9241.00 COST 9241.00,16/09/2020,0000458786,"9,241.00",Revenue,ASH BARN CONSTRUCTION LTD,00081278
South Ribble Council,http://statistics.data.gov.uk/doc/local-authority/30UN,Property Services,Advertising,4841,Please supply A3 advert for 1 year at Leyland Train Station as per NAME REDACTED Market Manager,09/09/2020,0000458643,500.00,Revenue,Atlas (UK) Limited,133020
South Ribble Council,http://statistics.data.gov.uk/doc/local-authority/30UN,Democratic Services,Repair Costs,4059,Engineer meeting attendance: Ref. 2285 July 2020,16/09/2020,0000458791,595.00,Revenue,AUDITEL,130495
South Ribble Council,http://statistics.data.gov.uk/doc/local-authority/30UN,Property Services,Rep & Maint Premises,2020,Single phase electric operation:  A 13 amp switched fused spur should be supplied at low level on motor side of each opening by others.,16/09/2020,0000458822,"2,590.00",Revenue,AVALON DOORS & AWNINGS LTD,131051
South Ribble Council,http://statistics.data.gov.uk/doc/local-authority/30UN,Property Services,Rep & Maint Premises,2020,LABOUR,16/09/2020,0000458822,800.00,Revenue,AVALON DOORS & AWNINGS LTD,131051
South Ribble Council,http://statistics.data.gov.uk/doc/local-authority/30UN,Area 2 - Waste Transport/Eastern & Central Teams,Advertising,4842,1500x additional bin stickers,11/09/2020,0000458525,424.00,Revenue,B & D PRINT SERVICES LTD,00015134
South Ribble Council,http://statistics.data.gov.uk/doc/local-authority/30UN,Regeneration,Contributions,4730,"Room Hire all day  for the Holiday Hunger Project on Mon 13 July, Mon 27 July, Mon 3 August, Mon 17 August",16/09/2020,0000458671,400.00,Revenue,BAMBER BRIDGE METHODIST CHURCH,00063788
South Ribble Council,http://statistics.data.gov.uk/doc/local-authority/30UN,Property Services,Rep & Maint Premises,2020,Please carry out works as per NAME REDACTED request for Leyland Market Product Replacement commercial Fan unit and labour ,30/09/2020,0000459212,574.80,Revenue,BELEC ELECTRICAL LTD,130290
South Ribble Council,http://statistics.data.gov.uk/doc/local-authority/30UN,Property Services,Rep & Maint Premises,2020,Please carry out works to the units and brew house as per NAME REDACTED instruction To replace lights at boxer place 18b & C. 800,30/09/2020,0000459239,800.00,Revenue,BELEC ELECTRICAL LTD,130290
South Ribble Council,http://statistics.data.gov.uk/doc/local-authority/30UN,Property Services,Rep & Maint Premises,2020,"To replace lights within the bru house worden park, for 450.",30/09/2020,0000459239,450.00,Revenue,BELEC ELECTRICAL LTD,130290
South Ribble Council,http://statistics.data.gov.uk/doc/local-authority/30UN,Property Services,Rep & Maint Premises,2020,"Please carry out work as per NAME REDACTED request This is for a report that is needed to support our LED tender project,",30/09/2020,0000459241,250.00,Revenue,BELEC ELECTRICAL LTD,130290
South Ribble Council,http://statistics.data.gov.uk/doc/local-authority/30UN,Area 2 - Waste Transport/Eastern & Central Teams,Advertising,4842,"10,000 bin handle contamination tags",11/09/2020,0000457746,"2,196.00",Revenue,BHW PRINT GROUP LIMITED,133039
South Ribble Council,http://statistics.data.gov.uk/doc/local-authority/30UN,Healthy Communities,Materials General,4040,Various Sports Equipment for Sport England Doorstep Play Project.,11/09/2020,0000458600,493.55,Revenue,Bishop Sports & Leisure Ltd,131843
South Ribble Council,http://statistics.data.gov.uk/doc/local-authority/30UN,Neighbourhood Admin & Support,Grounds Maint Cntrctrs Chgs,4657,60mt Twin wall drainage pipe 6`` + 10 collars + 3 concrete rings 150ml + 2 concrete ring 300ml 1 concrete 200ml 1 chamber cover 1 bag cement,04/09/2020,0000458530,388.35,Revenue,C & W BERRY LTD,00015231
South Ribble Council,http://statistics.data.gov.uk/doc/local-authority/30UN,Area 3 - Parks/Leyland East West,External Contractors Charges,4570,"URGENT WORKS TO THE UNSAFE MEMORIALS WITHIN THE CLOSED GRAVE YARD AT ST MARY`S CHURCH, PENWORTHAM",25/09/2020,0000458980,"3,000.00",Revenue,C B Price & Son Ltd,133017
South Ribble Council,http://statistics.data.gov.uk/doc/local-authority/30UN,Area 3 - Parks/Leyland East West,External Contractors Charges,4570,"URGENT WORKS TO THE UNSAFE MEMORIALS WITHIN THE CLOSED GRAVE YARD AT ST MARY`S CHURCH, PENWORTHAM",25/09/2020,0000458981,"3,000.00",Revenue,C B Price & Son Ltd,133017
South Ribble Council,http://statistics.data.gov.uk/doc/local-authority/30UN,Planning,Agency Fees,1121,Remote validation support for Development Management,11/09/2020,0000458446,"1,066.56",Revenue,CAPITA PROPERTY AND INFRASTRUCTURE LTD,131347
South Ribble Council,http://statistics.data.gov.uk/doc/local-authority/30UN,Property Services,Professional Fees,4510,"South Ribble Housing Management Options Report and Member Workshop. To include draft report, Member workshop and final report.",02/09/2020,0000458479,"4,700.00",Revenue,CAPITA PROPERTY AND INFRASTRUCTURE LTD,131347
South Ribble Council,http://statistics.data.gov.uk/doc/local-authority/30UN,Information Services,Peripherals,4245,"UPS maintenance - Emergency UPS Service Contract, for period 01/09/20 - 31/08/21, as per quote",16/09/2020,0000458650,"2,100.00",Revenue,Central Power Services ltd,133183
South Ribble Council,http://statistics.data.gov.uk/doc/local-authority/30UN,Information Services,Peripherals,4245,"Generator Services - Emergency Standby Power Service Contract for period 01/09/20 - 31/08/21, as per quote",16/09/2020,0000458651,875.00,Revenue,Central Power Services ltd,133183
South Ribble Council,http://statistics.data.gov.uk/doc/local-authority/30UN,Information Services,Peripherals,4245,Onsite visit for faulty generator,18/09/2020,0000458860,299.60,Revenue,Central Power Services ltd,133183
South Ribble Council,http://statistics.data.gov.uk/doc/local-authority/30UN,Area 2 - Waste Transport/Eastern & Central Teams,Materials General,4040,1 x adblue pump PO13UUM JFC15214,11/09/2020,0000458693,848.40,Revenue,CICELEY COMMERCIALS LTD,00059381
South Ribble Council,http://statistics.data.gov.uk/doc/local-authority/30UN,HR & Communications,Training Expense-Course Fees,1402,NAME REDACTED TO ATTEND `INTRODUCTION TO INTERNAL AUDIT ON 21 APRIL 2020 - NOW ONLINE,09/09/2020,0000458592,290.00,Revenue,CIPFA BUSINESS LTD,00017187
South Ribble Council,http://statistics.data.gov.uk/doc/local-authority/30UN,Environmental Health,Operational Furniture & Equip,4010,Calibration of noise equipment per quotation 34467 - per NAME REDACTED,30/09/2020,0000458951,413.00,Revenue,CIRRUS RESEARCH PLC,131450
South Ribble Council,http://statistics.data.gov.uk/doc/local-authority/30UN,Information Services,Peripherals,4246,"Extraction of 437,199 images - D360 system  - Extraction, Installation, Configuration, Project Management, Remote Monitoring and Support",09/09/2020,0000458237,"24,995.00",Revenue,CIVICA UK LTD,00102717
South Ribble Council,http://statistics.data.gov.uk/doc/local-authority/30UN,Information Services,Peripherals,4241,"70x Headphones 14.78 each,  25x USB Cables 1.67 each and 1x USB Cable 2.98",18/09/2020,0000458865,946.31,Revenue,CPC Re: COMBINED PRECISION COMPONENTS PLC,00017954
South Ribble Council,http://statistics.data.gov.uk/doc/local-authority/30UN,Revenues Plus,Postage,4291,Postage April to Sept 2020,16/09/2020,0000458644,320.82,Revenue,CRITIQOM,131053
South Ribble Council,http://statistics.data.gov.uk/doc/local-authority/30UN,Revenues Plus,Postage,4291,Postage April to Sept 2020,16/09/2020,0000458698,281.01,Revenue,CRITIQOM,131053
South Ribble Council,http://statistics.data.gov.uk/doc/local-authority/30UN,Revenues Plus,Postage,4291,Postage April to Sept 2020,22/09/2020,0000458878,301.17,Revenue,CRITIQOM,131053
South Ribble Council,http://statistics.data.gov.uk/doc/local-authority/30UN,Revenues Plus,Postage,4291,Postage April to Sept 2020,30/09/2020,0000458936,272.53,Revenue,CRITIQOM,131053
South Ribble Council,http://statistics.data.gov.uk/doc/local-authority/30UN,Legal,Legal,4821,PROFESSIONAL SERVICES IN RELATION TO AN EMPLOYMENT TRIBUNAL MATTER,11/09/2020,0000458706,"2,653.60",Revenue,DAC BEACHCROFT LLP,131193
South Ribble Council,http://statistics.data.gov.uk/doc/local-authority/30UN,Area 2 - Waste Transport/Eastern & Central Teams,Materials General,4040,"6 x bush, 2 x pins, 2 x seals, 4 x bush sweep plates, 2 x sweep platte bearings, 2 x sweep plate pins, 2 x spacers, VO65KPX, JFC15222",04/09/2020,0000458524,740.97,Revenue,DENNIS EAGLE LTD,00019774
South Ribble Council,http://statistics.data.gov.uk/doc/local-authority/30UN,Area 2 - Waste Transport/Eastern & Central Teams,Materials General,4040,"1 ball joint, 1 day time running light, 3 plastic rivets VO65 KPX  JFC15304",22/09/2020,0000458849,345.88,Revenue,DENNIS EAGLE LTD,00019774
South Ribble Council,http://statistics.data.gov.uk/doc/local-authority/30UN,Property Services,Rep & Maint Premises,2020,"Please carry out works as per NAME REDACTED We require a smoke sensor fitting into the new CAB office. Civic Centre, 2nd floor East Wing.",09/09/2020,0000458549,285.00,Revenue,DES Electrical Services Ltd,131437
South Ribble Council,http://statistics.data.gov.uk/doc/local-authority/30UN,Property Services,Rep & Maint Premises,2020,"As per  NAME REDACTED instruction, Re: Fire Alarm Remedial Works, Various Sites; Further to our recent fire alarm service costings as detailed",25/09/2020,0000458890,135.00,Revenue,DES Electrical Services Ltd,131437
South Ribble Council,http://statistics.data.gov.uk/doc/local-authority/30UN,Property Services,Rep & Maint Premises,2020,"Moss Side Depot Replace back-up batteries in the main fire panel, repeater panel and sounder power supply. Replace heat detector in boiler room.",25/09/2020,0000458890,135.00,Revenue,DES Electrical Services Ltd,131437
South Ribble Council,http://statistics.data.gov.uk/doc/local-authority/30UN,Neighbourhood Admin & Support,Clothing- Uniforms & Laundry,4410,1 PAIR BREATH FLEX PRO - MEDIUM - TYPE C,11/09/2020,0000458697,250.75,Revenue,DICK LEIGH,00026534
South Ribble Council,http://statistics.data.gov.uk/doc/local-authority/30UN,Information Services,Peripherals,4241,"2 x Fargo HDP5000 YMCK Colour Ribbon, 084051 - 500 Prints 1 x Fargo HDP5000 Re-Transfer Film, 084053 - 1500 Prints  Carriage 8.95",16/09/2020,0000458803,262.40,Revenue,DIGITAL ID LTD,130641
South Ribble Council,http://statistics.data.gov.uk/doc/local-authority/30UN,Property Services,Operational Furniture & Equip,4010,Please supply a Makita DLX6067PT10X5 10 Piece Cordless Kit with 5 x 5.0Ah Batteries SKU: MAKPDLX6067PT10 to the Civic centre,09/09/2020,0000458523,"1,162.92",Revenue,Duotool Direct LTD Toolden,133173
South Ribble Council,http://statistics.data.gov.uk/doc/local-authority/30UN,Information Services,Peripherals,4260,01 sept 2020,11/09/2020,0000458696,"4,220.39",Revenue,EE Ltd,131653
South Ribble Council,http://statistics.data.gov.uk/doc/local-authority/30UN,Property Services,Rep & Maint Premises,2020,"We require some blinds changing in the building: ICT Rear office, Bookings office, Conservative Room.  as per NAME REDACTED request",30/09/2020,0000458983,"1,095.00",Revenue,EMPORIUM BLINDS UK,131036
South Ribble Council,http://statistics.data.gov.uk/doc/local-authority/30UN,Area 2 - Waste Transport/Eastern & Central Teams,Materials General,4040,1 x second hand sweep plate VO65KPX JFC15222,04/09/2020,0000458519,"1,000.00",Revenue,Euro Municipals Ltd,132810
South Ribble Council,http://statistics.data.gov.uk/doc/local-authority/30UN,Area 2 - Waste Transport/Eastern & Central Teams,External Contractors Charges,4570,Residual Waste Collections (Catch Up April - July 2020),18/09/2020,0000458827,"4,757.73",Revenue,FCC Environment Services (UK) Ltd,131612
South Ribble Council,http://statistics.data.gov.uk/doc/local-authority/30UN,Area 2 - Waste Transport/Eastern & Central Teams,External Contractors Charges,4570,Dry recyclable non terraced (Catch Up April - July 2020),18/09/2020,0000458827,"4,861.98",Revenue,FCC Environment Services (UK) Ltd,131612
South Ribble Council,http://statistics.data.gov.uk/doc/local-authority/30UN,Area 2 - Waste Transport/Eastern & Central Teams,External Contractors Charges,4570,Dry recyclable (Catch Up April - July 2020),18/09/2020,0000458827,233.68,Revenue,FCC Environment Services (UK) Ltd,131612
South Ribble Council,http://statistics.data.gov.uk/doc/local-authority/30UN,Area 2 - Waste Transport/Eastern & Central Teams,External Contractors Charges,4570,Organic Waste non terraced (Catch Up April - July 2020),18/09/2020,0000458827,"3,350.98",Revenue,FCC Environment Services (UK) Ltd,131612
South Ribble Council,http://statistics.data.gov.uk/doc/local-authority/30UN,Area 2 - Waste Transport/Eastern & Central Teams,External Contractors Charges,4570,Schedule 2 properties (Catch Up April - July 2020),18/09/2020,0000458827,197.35,Revenue,FCC Environment Services (UK) Ltd,131612
South Ribble Council,http://statistics.data.gov.uk/doc/local-authority/30UN,Area 2 - Waste Transport/Eastern & Central Teams,External Contractors Charges,4570,Commercial Waste (Catch Up April - July 2020),18/09/2020,0000458827,745.04,Revenue,FCC Environment Services (UK) Ltd,131612
South Ribble Council,http://statistics.data.gov.uk/doc/local-authority/30UN,Area 2 - Waste Transport/Eastern & Central Teams,External Contractors Charges,4570,Bulky waste collections (Catch Up April - July 2020),18/09/2020,0000458827,105.45,Revenue,FCC Environment Services (UK) Ltd,131612
South Ribble Council,http://statistics.data.gov.uk/doc/local-authority/30UN,Area 2 - Waste Transport/Eastern & Central Teams,External Contractors Charges,4570,WEEE collections (Catch Up April - July 2020),18/09/2020,0000458827,40.53,Revenue,FCC Environment Services (UK) Ltd,131612
South Ribble Council,http://statistics.data.gov.uk/doc/local-authority/30UN,Area 2 - Waste Transport/Eastern & Central Teams,External Contractors Charges,4570,Clinical Waste Collections (Catch Up April - July 2020),18/09/2020,0000458827,69.16,Revenue,FCC Environment Services (UK) Ltd,131612
South Ribble Council,http://statistics.data.gov.uk/doc/local-authority/30UN,Area 2 - Waste Transport/Eastern & Central Teams,External Contractors Charges,4570,Additional Properties (Catch Up April - July 2020),18/09/2020,0000458827,"4,624.57",Revenue,FCC Environment Services (UK) Ltd,131612
South Ribble Council,http://statistics.data.gov.uk/doc/local-authority/30UN,Area 2 - Waste Transport/Eastern & Central Teams,Balance Sheet,0030,catch up retention,18/09/2020,0000458827,-949.32,Revenue,FCC Environment Services (UK) Ltd,131612
South Ribble Council,http://statistics.data.gov.uk/doc/local-authority/30UN,Area 2 - Waste Transport/Eastern & Central Teams,External Contractors Charges,4570,Additional WEEE collections August 2020,18/09/2020,0000458828,667.28,Revenue,FCC Environment Services (UK) Ltd,131612
South Ribble Council,http://statistics.data.gov.uk/doc/local-authority/30UN,Area 2 - Waste Transport/Eastern & Central Teams,External Contractors Charges,4570,Additional Bulky Waste Collections August 2020,18/09/2020,0000458828,"1,075.25",Revenue,FCC Environment Services (UK) Ltd,131612
South Ribble Council,http://statistics.data.gov.uk/doc/local-authority/30UN,Area 2 - Waste Transport/Eastern & Central Teams,Balance Sheet,0030,retention,18/09/2020,0000458828,-87.13,Revenue,FCC Environment Services (UK) Ltd,131612
South Ribble Council,http://statistics.data.gov.uk/doc/local-authority/30UN,Area 2 - Waste Transport/Eastern & Central Teams,External Contractors Charges,4570,Additional Clinical Waste Collections August 2020,18/09/2020,0000458829,454.48,Revenue,FCC Environment Services (UK) Ltd,131612
South Ribble Council,http://statistics.data.gov.uk/doc/local-authority/30UN,Area 2 - Waste Transport/Eastern & Central Teams,Balance Sheet,0030,retention,18/09/2020,0000458829,-22.72,Revenue,FCC Environment Services (UK) Ltd,131612
South Ribble Council,http://statistics.data.gov.uk/doc/local-authority/30UN,Area 2 - Waste Transport/Eastern & Central Teams,External Contractors Charges,4570,Additional WEEE Collections July 2020,18/09/2020,0000458830,899.85,Revenue,FCC Environment Services (UK) Ltd,131612
South Ribble Council,http://statistics.data.gov.uk/doc/local-authority/30UN,Area 2 - Waste Transport/Eastern & Central Teams,External Contractors Charges,4570,Additional Bulky Waste Collections July 2020,18/09/2020,0000458830,"1,342.11",Revenue,FCC Environment Services (UK) Ltd,131612
South Ribble Council,http://statistics.data.gov.uk/doc/local-authority/30UN,Area 2 - Waste Transport/Eastern & Central Teams,Balance Sheet,0030,bucky retention,18/09/2020,0000458830,-123.31,Revenue,FCC Environment Services (UK) Ltd,131612
South Ribble Council,http://statistics.data.gov.uk/doc/local-authority/30UN,Area 2 - Waste Transport/Eastern & Central Teams,External Contractors Charges,4570,Replacement bins August 2020,25/09/2020,0000458875,"5,000.00",Revenue,FCC Environment Services (UK) Ltd,131612
South Ribble Council,http://statistics.data.gov.uk/doc/local-authority/30UN,Area 2 - Waste Transport/Eastern & Central Teams,External Contractors Charges,4570,Residual Waste Collections August 2020,25/09/2020,0000458875,"46,869.90",Revenue,FCC Environment Services (UK) Ltd,131612
South Ribble Council,http://statistics.data.gov.uk/doc/local-authority/30UN,Area 2 - Waste Transport/Eastern & Central Teams,External Contractors Charges,4570,Dry recyclable non-terraced  August 2020,25/09/2020,0000458875,"47,981.92",Revenue,FCC Environment Services (UK) Ltd,131612
South Ribble Council,http://statistics.data.gov.uk/doc/local-authority/30UN,Area 2 - Waste Transport/Eastern & Central Teams,External Contractors Charges,4570,Dry recyclable terraced  August 2020,25/09/2020,0000458875,"2,283.78",Revenue,FCC Environment Services (UK) Ltd,131612
South Ribble Council,http://statistics.data.gov.uk/doc/local-authority/30UN,Area 2 - Waste Transport/Eastern & Central Teams,External Contractors Charges,4570,Organic Waste non terraced  August 2020,25/09/2020,0000458875,"33,222.59",Revenue,FCC Environment Services (UK) Ltd,131612
South Ribble Council,http://statistics.data.gov.uk/doc/local-authority/30UN,Area 2 - Waste Transport/Eastern & Central Teams,External Contractors Charges,4570,Schedule 2 properties  August 2020,25/09/2020,0000458875,"1,910.50",Revenue,FCC Environment Services (UK) Ltd,131612
South Ribble Council,http://statistics.data.gov.uk/doc/local-authority/30UN,Area 2 - Waste Transport/Eastern & Central Teams,External Contractors Charges,4570,Commercial Waste  August 2020,25/09/2020,0000458875,"7,439.27",Revenue,FCC Environment Services (UK) Ltd,131612
South Ribble Council,http://statistics.data.gov.uk/doc/local-authority/30UN,Area 2 - Waste Transport/Eastern & Central Teams,External Contractors Charges,4570,Bulky Waste Collections  August 2020,25/09/2020,0000458875,"1,032.37",Revenue,FCC Environment Services (UK) Ltd,131612
South Ribble Council,http://statistics.data.gov.uk/doc/local-authority/30UN,Area 2 - Waste Transport/Eastern & Central Teams,External Contractors Charges,4570,WEEE Collections  August 2020,25/09/2020,0000458875,387.78,Revenue,FCC Environment Services (UK) Ltd,131612
South Ribble Council,http://statistics.data.gov.uk/doc/local-authority/30UN,Area 2 - Waste Transport/Eastern & Central Teams,External Contractors Charges,4570,Clinical Waste Collections  August 2020,25/09/2020,0000458875,660.62,Revenue,FCC Environment Services (UK) Ltd,131612
South Ribble Council,http://statistics.data.gov.uk/doc/local-authority/30UN,Area 2 - Waste Transport/Eastern & Central Teams,External Contractors Charges,4570,Additional Properties  August 2020,25/09/2020,0000458875,"4,116.80",Revenue,FCC Environment Services (UK) Ltd,131612
South Ribble Council,http://statistics.data.gov.uk/doc/local-authority/30UN,Area 2 - Waste Transport/Eastern & Central Teams,Balance Sheet,0030,refuse retention,25/09/2020,0000458875,"-3,120.86",Revenue,FCC Environment Services (UK) Ltd,131612
South Ribble Council,http://statistics.data.gov.uk/doc/local-authority/30UN,Area 2 - Waste Transport/Eastern & Central Teams,Balance Sheet,0030,recycling retention,25/09/2020,0000458875,"-4,174.41",Revenue,FCC Environment Services (UK) Ltd,131612
South Ribble Council,http://statistics.data.gov.uk/doc/local-authority/30UN,Area 3 - Parks/Leyland East West,Grounds Maint Cntrctrs Chgs,4657,Spare parts as per quotation no. 47646.,22/09/2020,0000458274,719.00,Revenue,FENLAND LEISURE LTD,130725
South Ribble Council,http://statistics.data.gov.uk/doc/local-authority/30UN,Information Services,Capital Expenditure,C234,Outlook Integration,04/09/2020,0000458535,"1,200.00",Revenue,FIRMSTEP,00114022
South Ribble Council,http://statistics.data.gov.uk/doc/local-authority/30UN,Information Services,Capital Expenditure,C234,Gov Notify Integration,04/09/2020,0000458550,"1,810.00",Revenue,FIRMSTEP,00114022
South Ribble Council,http://statistics.data.gov.uk/doc/local-authority/30UN,Information Services,Peripherals,4248,Offline Forms renewal for period 30/09/20 - 29/09/21,25/09/2020,0000458961,"8,000.00",Revenue,FIRMSTEP,00114022
South Ribble Council,http://statistics.data.gov.uk/doc/local-authority/30UN,Neighbourhood Admin & Support,Materials General,4040,24 x football pitch line marker paint 10Ltrs (Pitchmarker Q2) at 20.71 each,30/09/2020,0000459028,497.04,Revenue,Fleet Line Markers Limited,131942
South Ribble Council,http://statistics.data.gov.uk/doc/local-authority/30UN,Healthy Communities,Consultancy Fees,4541,As per NAME REDACTED request please supply - Leisure Management contract consultancy work July 2020 fees as per proposal.,09/09/2020,0000458627,"8,287.50",Revenue,FMG Consulting Ltd,133044
South Ribble Council,http://statistics.data.gov.uk/doc/local-authority/30UN,Area 2 - Waste Transport/Eastern & Central Teams,Materials General,4040,1 x Hopper Seal and LWR Rail JFC15168 YA19NKD,16/09/2020,0000458336,193.15,Revenue,GEESINK NORBA LTD,132941
South Ribble Council,http://statistics.data.gov.uk/doc/local-authority/30UN,Area 2 - Waste Transport/Eastern & Central Teams,Materials General,4040,1 x Hopper Seal and LWR Rail YD19ATY JFC15166,16/09/2020,0000458336,193.15,Revenue,GEESINK NORBA LTD,132941
South Ribble Council,http://statistics.data.gov.uk/doc/local-authority/30UN,Environmental Health,Other Misc,485R,refund rec0001100005381,30/09/2020,0000457920,295.00,Revenue,NAME REDACTED,133156
South Ribble Council,http://statistics.data.gov.uk/doc/local-authority/30UN,Area 2 - Waste Transport/Eastern & Central Teams,Materials General,4040,Filters for stores,30/09/2020,0000458903,369.79,Revenue,H & J SERVICES LTD,00114446
South Ribble Council,http://statistics.data.gov.uk/doc/local-authority/30UN,Neighbourhood Admin & Support,Materials General,4040,BLACK SACKS `KEEP SOUTH RIBBLE TIDY` in white - 455x735x990-25Micron GPS Bi Modal Super plus,25/09/2020,0000457810,"3,733.20",Revenue,HARRISONS PACKAGING LTD,00024099
South Ribble Council,http://statistics.data.gov.uk/doc/local-authority/30UN,Environmental Health,Capital Expenditure,C230,Soil samples - per NAME REDACTED,02/09/2020,0000457856,445.00,Revenue,i2 ANALYTICAL UK LTD,132350
South Ribble Council,http://statistics.data.gov.uk/doc/local-authority/30UN,Property Services,Rep & Maint Premises,2020,"Please supply as per quotation WM 290720 Introduction to Uniform training course 1 day         	1,250	1,250",09/09/2020,0000458481,"9,325.00",Revenue,IDOX PLC,00104485
South Ribble Council,http://statistics.data.gov.uk/doc/local-authority/30UN,Information Services,Peripherals,4248,"Planning Inspections App maintenance 273.81 and Development Enforcement App Maintenance 273.81 for period 31/10/20 - 31/03/21, as per ",16/09/2020,0000458764,547.62,Revenue,IDOX PLC,00104485
South Ribble Council,http://statistics.data.gov.uk/doc/local-authority/30UN,Information Services,Peripherals,4248,Service Requests App Annual Maintenance for period 30/09/20 - 31/03/21 as per quote 3501836SOU009300920,16/09/2020,0000458788,329.65,Revenue,IDOX PLC,00104485
South Ribble Council,http://statistics.data.gov.uk/doc/local-authority/30UN,Information Services,Capital Expenditure,C234,"Installation of new Modules to current IDOX solution as per Contract Signed May 2020 - 146,650.00",22/09/2020,0000458869,"36,662.50",Revenue,IDOX PLC,00104485
South Ribble Council,http://statistics.data.gov.uk/doc/local-authority/30UN,Revenues Plus,Professional Fees,4510,RV finder for car park bison place,16/09/2020,0000458777,"1,925.00",Revenue,Inform CPI Ltd,131666
South Ribble Council,http://statistics.data.gov.uk/doc/local-authority/30UN,Revenues Plus,Professional Fees,4510,RV Finer Cuerden Valley Park Wigan Road Carpark,30/09/2020,0000458937,550.00,Revenue,Inform CPI Ltd,131666
South Ribble Council,http://statistics.data.gov.uk/doc/local-authority/30UN,Area 3 - Parks/Leyland East West,Grounds Maint Cntrctrs Chgs,4657,"Time for Tender Issue , Hurst Grange Coach House Penwortham",02/09/2020,0000458484,960.00,Revenue,Ivan Wilson Architect,133006
South Ribble Council,http://statistics.data.gov.uk/doc/local-authority/30UN,Regeneration,Capital Expenditure,C230,Please carry out works per NAME REDACTED request Description: Relocation of existing footpath as part of the Leyland loop Amount: 2350.00,25/09/2020,0000458870,"2,350.00",Revenue,John Wade Groundworks Ltd t/a Wade Group,131568
South Ribble Council,http://statistics.data.gov.uk/doc/local-authority/30UN,Area 3 - Parks/Leyland East West,Grounds Maint Cntrctrs Chgs,4657,Archaeological Building Recording Hurst Grange Coach House Penwortham PR1 9XH,04/09/2020,0000458503,300.00,Revenue,Kathryn Sather & Associates,133151
South Ribble Council,http://statistics.data.gov.uk/doc/local-authority/30UN,Planning,Professional Fees,4510,Viability appraisal - Land at Langdale Road - 07/2020/00373/REM,25/09/2020,0000458896,"1,900.00",Revenue,Keppie Massie,131948
South Ribble Council,http://statistics.data.gov.uk/doc/local-authority/30UN,Homelessness,Contributions,4730,Housing Advice & Mediation Q2 July to Sept 2020/21,25/09/2020,0000458614,"4,875.00",Revenue,KEY UNLOCKING FUTURES LTD,00098601
South Ribble Council,http://statistics.data.gov.uk/doc/local-authority/30UN,Information Services,Peripherals,4246,100MB Link between SRBC and Chorley BC for period 01/04/20 - 31/03/21,11/09/2020,0000458742,"5,003.46",Revenue,LANCS COUNTY COUNCIL,00041645
South Ribble Council,http://statistics.data.gov.uk/doc/local-authority/30UN,Housing,Cap Grant- Improve Grants,C570,DFG WORKS TO SUPPLY AND INSTALL THROUGH FLOOR LIFT AT ADDRESS REDACTED AS PER QUOTE SUPPLIED FOR OF 10067.00,16/09/2020,0000458783,"10,067.00",Revenue,LANCS COUNTY COUNCIL,00041645
South Ribble Council,http://statistics.data.gov.uk/doc/local-authority/30UN,Housing,Cap Grant- Improve Grants,C570,SUPPLY AND INSTALL TOILET EQUIPMENT AT ADDRESS REDACTED AS PER QUOTE SUPPLIED OF 3495.00 TOTAL COST 3495.00,16/09/2020,0000458834,"3,664.00",Revenue,LANCS COUNTY COUNCIL,00041645
South Ribble Council,http://statistics.data.gov.uk/doc/local-authority/30UN,Housing,Cap Grant- Improve Grants,C570,DFG WORKS TO SUPPLY AND INSTALL A STAIRLIFT AT ADDRESS REDACTED AS PER QUOTE SUPPLIED OF 5948.00,18/09/2020,0000458851,"5,948.00",Revenue,LANCS COUNTY COUNCIL,00041645
South Ribble Council,http://statistics.data.gov.uk/doc/local-authority/30UN,Area 2 - Waste Transport/Eastern & Central Teams,Materials General,4040,1 x full service kit YA19NKD JFC15206,02/09/2020,0000458443,213.71,Revenue,LANCS DAF,00026424
South Ribble Council,http://statistics.data.gov.uk/doc/local-authority/30UN,Area 2 - Waste Transport/Eastern & Central Teams,Materials General,4040,1 x gearbox filters YA19NKD JFC15206,02/09/2020,0000458443,98.49,Revenue,LANCS DAF,00026424
South Ribble Council,http://statistics.data.gov.uk/doc/local-authority/30UN,Property Services,Rep & Maint Premises,2020,Jetvac of Moss Side Depot Drains to be scheduled for 3/8/2020 and 1st or 2/2/2021 as per email of 20/3/2020 and agreed with NAME REDACTED,30/09/2020,0000458977,"1,880.00",Revenue,LANES GROUP PLC,131048
South Ribble Council,http://statistics.data.gov.uk/doc/local-authority/30UN,Area 3 - Parks/Leyland East West,Grounds Maint Cntrctrs Chgs,4657,Fabrication(including galvanised and powder coated) and Installation of a new railing section to the top of the mound slide on Worden Park.,02/09/2020,0000458007,490.00,Revenue,Leyland Lane Wrought Iron Gates & Railings,132012
South Ribble Council,http://statistics.data.gov.uk/doc/local-authority/30UN,Area 3 - Parks/Leyland East West,Grounds Maint Cntrctrs Chgs,4657,1 x 20`` new (once shipped) container delivered to Hurst Grange Park.,02/09/2020,0000458462,"2,195.00",Revenue,Lion Containers Ltd,133178
South Ribble Council,http://statistics.data.gov.uk/doc/local-authority/30UN,Area 3 - Parks/Leyland East West,Grounds Maint Cntrctrs Chgs,4657,1 x high security padlock,02/09/2020,0000458462,49.50,Revenue,Lion Containers Ltd,133178
South Ribble Council,http://statistics.data.gov.uk/doc/local-authority/30UN,Regeneration,Capital Expenditure,C230,To provide services for the Civic Centre Solar project.,16/09/2020,0000458720,"15,675.00",Revenue,Low Carbon Installations Ltd,133023
South Ribble Council,http://statistics.data.gov.uk/doc/local-authority/30UN,Regeneration,Capital Expenditure,C230,LABOUR,16/09/2020,0000458720,"5,000.00",Revenue,Low Carbon Installations Ltd,133023
South Ribble Council,http://statistics.data.gov.uk/doc/local-authority/30UN,Neighbourhood Admin & Support,Operational Furniture & Equip,4010,PADLOCKS  - SQUIRE 660 TO PASS KEY 10 -,02/09/2020,0000458195,303.52,Revenue,M A C BUILDING PRODUCTS LTD,00051059
South Ribble Council,http://statistics.data.gov.uk/doc/local-authority/30UN,Area 3 - Parks/Leyland East West,Grounds Maint Cntrctrs Chgs,4657,20T Grade 1 Top Soil delivered to Worden Park,04/09/2020,0000458521,460.00,Revenue,M C & M A STEWART HAULAGE LTD,00035567
South Ribble Council,http://statistics.data.gov.uk/doc/local-authority/30UN,Area 3 - Parks/Leyland East West,External Contractors Charges,4570,Supply and apply weed and feed to the football pitches and grass areas in South Ribble,02/09/2020,0000457588,"3,996.00",Revenue,Maple Contracting Ltd T/A Complete Weed Control,132875
South Ribble Council,http://statistics.data.gov.uk/doc/local-authority/30UN,Housing,Capital Fees,C210,Surveyor fees for 12 month maternity cover for DFG cases 20000,25/09/2020,0000458943,"4,810.00",Revenue,Mathew Butterworth Associates Limited,133150
South Ribble Council,http://statistics.data.gov.uk/doc/local-authority/30UN,Planning,Consultancy Fees,4541,Support with the development of a Community Wealth Building Action Plan for South Ribble as per email of 9th June 2020,11/09/2020,0000458721,"2,000.00",Revenue,Matthew Baqueriza-Jackson LTD,133140
South Ribble Council,http://statistics.data.gov.uk/doc/local-authority/30UN,Legal,Legal,4821,NAME REDACTED V SOUTH RIBBLE BOROUGH COUNCIL AND OTHERS - JR PROCEEDINGS,16/09/2020,0000458760,"1,000.00",Revenue,Matthew Henderson,133139
South Ribble Council,http://statistics.data.gov.uk/doc/local-authority/30UN,Environmental Health,Other Misc,4851,9 Samsung Galaxy Tab Active 2 per Quotation 189341 per NAME REDACTED,16/09/2020,0000458455,"3,295.00",Revenue,MYPREMIER LTD,130091
South Ribble Council,http://statistics.data.gov.uk/doc/local-authority/30UN,Area 2 - Waste Transport/Eastern & Central Teams,Contract Hire & Lease Costs,3212,Hire of bin wagon VO61YVE On hire 1.8.20 - 20.8.20 20 days at 100.00 per day,02/09/2020,0000458457,"2,000.00",Revenue,NAYLORS TRANSPORT (LEYLAND) ltd,00114828
South Ribble Council,http://statistics.data.gov.uk/doc/local-authority/30UN,Area 2 - Waste Transport/Eastern & Central Teams,External Contractors Charges,4570,Vehicle Service Wash PJ62 UCG JFC15307,16/09/2020,0000458722,65.00,Revenue,NAYLORS TRANSPORT (LEYLAND) ltd,00114828
South Ribble Council,http://statistics.data.gov.uk/doc/local-authority/30UN,Area 2 - Waste Transport/Eastern & Central Teams,External Contractors Charges,4570,Vehicle Service Wash VO65 KPZ JFC15095,16/09/2020,0000458722,65.00,Revenue,NAYLORS TRANSPORT (LEYLAND) ltd,00114828
South Ribble Council,http://statistics.data.gov.uk/doc/local-authority/30UN,Area 2 - Waste Transport/Eastern & Central Teams,External Contractors Charges,4570,Vehicle Service Wash PO20ZRV JFC15308,16/09/2020,0000458722,65.00,Revenue,NAYLORS TRANSPORT (LEYLAND) ltd,00114828
South Ribble Council,http://statistics.data.gov.uk/doc/local-authority/30UN,Area 2 - Waste Transport/Eastern & Central Teams,External Contractors Charges,4570,Vehicle Service Wash VO65KRF JFC15309,16/09/2020,0000458722,65.00,Revenue,NAYLORS TRANSPORT (LEYLAND) ltd,00114828
South Ribble Council,http://statistics.data.gov.uk/doc/local-authority/30UN,Area 2 - Waste Transport/Eastern & Central Teams,External Contractors Charges,4570,Vehicle Service Wash PO20ZRY JFC15310,16/09/2020,0000458722,65.00,Revenue,NAYLORS TRANSPORT (LEYLAND) ltd,00114828
South Ribble Council,http://statistics.data.gov.uk/doc/local-authority/30UN,Area 2 - Waste Transport/Eastern & Central Teams,External Contractors Charges,4570,Vehicle Service Wash PF18 JOV JFC15190,16/09/2020,0000458722,65.00,Revenue,NAYLORS TRANSPORT (LEYLAND) ltd,00114828
South Ribble Council,http://statistics.data.gov.uk/doc/local-authority/30UN,Area 2 - Waste Transport/Eastern & Central Teams,External Contractors Charges,4570,Vehicle Service Wash MX04 YNL JFC15311,16/09/2020,0000458722,65.00,Revenue,NAYLORS TRANSPORT (LEYLAND) ltd,00114828
South Ribble Council,http://statistics.data.gov.uk/doc/local-authority/30UN,Area 2 - Waste Transport/Eastern & Central Teams,External Contractors Charges,4570,Vehicle Service Wash PJ62UCM JFC15212,16/09/2020,0000458722,65.00,Revenue,NAYLORS TRANSPORT (LEYLAND) ltd,00114828
South Ribble Council,http://statistics.data.gov.uk/doc/local-authority/30UN,Area 2 - Waste Transport/Eastern & Central Teams,External Contractors Charges,4570,Vehicle Service Wash PO13UUM JFC15214,16/09/2020,0000458722,65.00,Revenue,NAYLORS TRANSPORT (LEYLAND) ltd,00114828
South Ribble Council,http://statistics.data.gov.uk/doc/local-authority/30UN,Area 2 - Waste Transport/Eastern & Central Teams,External Contractors Charges,4570,Vehicle Service Wash VO65KRD JFC15312,16/09/2020,0000458722,65.00,Revenue,NAYLORS TRANSPORT (LEYLAND) ltd,00114828
South Ribble Council,http://statistics.data.gov.uk/doc/local-authority/30UN,Area 2 - Waste Transport/Eastern & Central Teams,External Contractors Charges,4570,Vehicle Service Wash VA19KOX JFC15313,16/09/2020,0000458723,65.00,Revenue,NAYLORS TRANSPORT (LEYLAND) ltd,00114828
South Ribble Council,http://statistics.data.gov.uk/doc/local-authority/30UN,Area 2 - Waste Transport/Eastern & Central Teams,External Contractors Charges,4570,Vehicle Service Wash YA19NKC JFC15139,16/09/2020,0000458723,65.00,Revenue,NAYLORS TRANSPORT (LEYLAND) ltd,00114828
South Ribble Council,http://statistics.data.gov.uk/doc/local-authority/30UN,Area 2 - Waste Transport/Eastern & Central Teams,External Contractors Charges,4570,Vehicle Service Wash YD19AUT JFC15204,16/09/2020,0000458723,65.00,Revenue,NAYLORS TRANSPORT (LEYLAND) ltd,00114828
South Ribble Council,http://statistics.data.gov.uk/doc/local-authority/30UN,Area 2 - Waste Transport/Eastern & Central Teams,External Contractors Charges,4570,Vehicle Service Wash YA19NGN JFC15314,16/09/2020,0000458723,65.00,Revenue,NAYLORS TRANSPORT (LEYLAND) ltd,00114828
South Ribble Council,http://statistics.data.gov.uk/doc/local-authority/30UN,Area 2 - Waste Transport/Eastern & Central Teams,External Contractors Charges,4570,Vehicle Service Wash YA19NKD JFC15206,16/09/2020,0000458723,65.00,Revenue,NAYLORS TRANSPORT (LEYLAND) ltd,00114828
South Ribble Council,http://statistics.data.gov.uk/doc/local-authority/30UN,Area 2 - Waste Transport/Eastern & Central Teams,External Contractors Charges,4570,Hire of bin Wagon VO61YVE on hire 01.09.2020-02.09.2020. 2 days at 170.00 per day.,25/09/2020,0000458958,340.00,Revenue,NAYLORS TRANSPORT (LEYLAND) ltd,00114828
South Ribble Council,http://statistics.data.gov.uk/doc/local-authority/30UN,Neighbourhood Admin & Support,Materials General,4040,CHANNEL BRUSH - 2.8 mm POLY & 3.3mm WIRE 5 row 700/1000mm - 78399/2,02/09/2020,0000458416,563.42,Revenue,NORTHERN MUNICIPAL SPARES LTD,00117061
South Ribble Council,http://statistics.data.gov.uk/doc/local-authority/30UN,Neighbourhood Admin & Support,Materials General,4040,DELIVERY CHARGE,02/09/2020,0000458416,45.00,Revenue,NORTHERN MUNICIPAL SPARES LTD,00117061
South Ribble Council,http://statistics.data.gov.uk/doc/local-authority/30UN,Neighbourhood Admin & Support,Materials General,4040,4 ROW CHANNEL BRUSH - C/W 4 NUTS/BOLTS - 835/66,22/09/2020,0000458674,297.93,Revenue,NORTHERN MUNICIPAL SPARES LTD,00117061
South Ribble Council,http://statistics.data.gov.uk/doc/local-authority/30UN,Neighbourhood Admin & Support,Materials General,4040,Channel brush 2.8mm POLY & 3.3mm WIRE 5 row 700/1000mm-MIDI SWEEPER (78399/2),30/09/2020,0000458949,378.82,Revenue,NORTHERN MUNICIPAL SPARES LTD,00117061
South Ribble Council,http://statistics.data.gov.uk/doc/local-authority/30UN,Neighbourhood Admin & Support,Materials General,4040,freight,30/09/2020,0000458949,39.50,Revenue,NORTHERN MUNICIPAL SPARES LTD,00117061
South Ribble Council,http://statistics.data.gov.uk/doc/local-authority/30UN,Information Services,Peripherals,4247,Combined Services for period 01/07/20 - 31/03/21,25/09/2020,0000458916,"2,542.72",Revenue,NVIRON LTD,00028781
South Ribble Council,http://statistics.data.gov.uk/doc/local-authority/30UN,Information Services,Peripherals,4247,Combined Services for period 01/07/20 - 31/03/21,25/09/2020,0000458940,"4,945.15",Revenue,NVIRON LTD,00028781
South Ribble Council,http://statistics.data.gov.uk/doc/local-authority/30UN,Regeneration,Other Misc,4851,Food supplies and delivery for Holiday Hunger project between 13 July and 20 August 2020,09/09/2020,0000458449,"66,255.60",Revenue,Oncore Trading,133077
South Ribble Council,http://statistics.data.gov.uk/doc/local-authority/30UN,Regeneration,Other Misc,4851,vatable items,09/09/2020,0000458449,"8,789.52",Revenue,Oncore Trading,133077
South Ribble Council,http://statistics.data.gov.uk/doc/local-authority/30UN,Neighbourhood Admin & Support,Clothing- Uniforms & Laundry,4410,Disposable Gloves DG150 - L,11/09/2020,0000458472,184.64,Revenue,Pattersons (Bristol) Ltd,132621
South Ribble Council,http://statistics.data.gov.uk/doc/local-authority/30UN,Neighbourhood Admin & Support,Clothing- Uniforms & Laundry,4410,Disposable Gloves DG150 - XL,11/09/2020,0000458472,415.44,Revenue,Pattersons (Bristol) Ltd,132621
South Ribble Council,http://statistics.data.gov.uk/doc/local-authority/30UN,Neighbourhood Admin & Support,Materials General,4040,MULTI SURFACE POLISH  - 750ML - BG045,22/09/2020,0000458867,9.48,Revenue,Pattersons (Bristol) Ltd,132621
South Ribble Council,http://statistics.data.gov.uk/doc/local-authority/30UN,Neighbourhood Admin & Support,Materials General,4040,AIR FRESHENER - FRESH LINEN 400ml - BG040 - FL,22/09/2020,0000458867,10.32,Revenue,Pattersons (Bristol) Ltd,132621
South Ribble Council,http://statistics.data.gov.uk/doc/local-authority/30UN,Neighbourhood Admin & Support,Materials General,4040,BLU AWAY - 750ML - BC065 -75,22/09/2020,0000458867,15.06,Revenue,Pattersons (Bristol) Ltd,132621
South Ribble Council,http://statistics.data.gov.uk/doc/local-authority/30UN,Neighbourhood Admin & Support,Materials General,4040,MICRO MINI TOILET ROLLS - 2ply  120M X 90MM - AA201,22/09/2020,0000458867,138.72,Revenue,Pattersons (Bristol) Ltd,132621
South Ribble Council,http://statistics.data.gov.uk/doc/local-authority/30UN,Neighbourhood Admin & Support,Materials General,4040,TOILET TISSUE JANGRO - AB101,22/09/2020,0000458867,121.80,Revenue,Pattersons (Bristol) Ltd,132621
South Ribble Council,http://statistics.data.gov.uk/doc/local-authority/30UN,Neighbourhood Admin & Support,Operational Furniture & Equip,4010,EXEL PY MOP HEADS (RED or GREEN) 250g - HA015-B or HA015-G,22/09/2020,0000458867,10.80,Revenue,Pattersons (Bristol) Ltd,132621
South Ribble Council,http://statistics.data.gov.uk/doc/local-authority/30UN,Neighbourhood Admin & Support,Materials General,4040,GENERAL PURPOSE DISINFECTANT  5 LTR - BC017 - 5,22/09/2020,0000458867,18.00,Revenue,Pattersons (Bristol) Ltd,132621
South Ribble Council,http://statistics.data.gov.uk/doc/local-authority/30UN,Regeneration,Capital Expenditure,C230,Please carry out works as per NAME REDACTED instructions Cost: 625.00 +vat Description: ecology survey @ Lostock hall st geds,09/09/2020,0000458516,625.00,Revenue,Pennine Ecological (Preston),132553
South Ribble Council,http://statistics.data.gov.uk/doc/local-authority/30UN,Property Services,Rep & Maint Fixed Plant,2037,Annual Contract  2020/2021 for the inspection of Portable Fire Extinguishers and Fire Blankets at various sites Brickcroft Visitor`s centre,30/09/2020,0000458586,6.20,Revenue,PENNINE FIRE & SAFETY LIMITED,00117281
South Ribble Council,http://statistics.data.gov.uk/doc/local-authority/30UN,Property Services,Rep & Maint Fixed Plant,2037,Annual Contract for 2020/2021 for inspection Fire Extinguishers/Fire Blankets at various sites  Civic Centre - to  include items supplied/replaced,30/09/2020,0000458586,217.70,Revenue,PENNINE FIRE & SAFETY LIMITED,00117281
South Ribble Council,http://statistics.data.gov.uk/doc/local-authority/30UN,Property Services,Rep & Maint Fixed Plant,2037,Annual Contract for 2020/2021 for the inspection of the Fire Extinguishers and Fire Blankets at various sites Higher Walton Community Centre,30/09/2020,0000458586,6.90,Revenue,PENNINE FIRE & SAFETY LIMITED,00117281
South Ribble Council,http://statistics.data.gov.uk/doc/local-authority/30UN,Property Services,Rep & Maint Fixed Plant,2037,Annual Contract for 2020/2021 for the inspection of the Portable Fire Extinguishers and Fire Blankets at Holland House Farm Pavillion,30/09/2020,0000458586,3.10,Revenue,PENNINE FIRE & SAFETY LIMITED,00117281
South Ribble Council,http://statistics.data.gov.uk/doc/local-authority/30UN,Property Services,Rep & Maint Fixed Plant,2037,Annual Contract for 2020/2021 for the inspection of the Fire Extinguishers and Fire Blankets at Leyland Indoor Market -include new/replaced,30/09/2020,0000458586,131.99,Revenue,PENNINE FIRE & SAFETY LIMITED,00117281
South Ribble Council,http://statistics.data.gov.uk/doc/local-authority/30UN,Property Services,Rep & Maint Fixed Plant,2037,Annual Contract for 2020/2021 for the inspection of the Portable Fire Extinguishers and Fire Blankets at Middleforth Garage Toilet Block,30/09/2020,0000458586,3.10,Revenue,PENNINE FIRE & SAFETY LIMITED,00117281
South Ribble Council,http://statistics.data.gov.uk/doc/local-authority/30UN,Property Services,Rep & Maint Fixed Plant,2037,Annual Contract for 2020/2021 for the inspection of Fire Extinguishers and Fire Blankets at Moss Side Community Centre to include new/replaced,30/09/2020,0000458586,26.90,Revenue,PENNINE FIRE & SAFETY LIMITED,00117281
South Ribble Council,http://statistics.data.gov.uk/doc/local-authority/30UN,Property Services,Rep & Maint Fixed Plant,2037,Annual Contract for 2020/2021 for the inspection of the Portable Fire Extinguishers and Fire Blankets at Moss Side Depot,30/09/2020,0000458586,112.30,Revenue,PENNINE FIRE & SAFETY LIMITED,00117281
South Ribble Council,http://statistics.data.gov.uk/doc/local-authority/30UN,Property Services,Rep & Maint Fixed Plant,2037,Annual Contract for 2020/2021  for the inspection of the Portable Fire Extinguishers and Fire Blankets at Ranger`s Office,30/09/2020,0000458586,3.10,Revenue,PENNINE FIRE & SAFETY LIMITED,00117281
South Ribble Council,http://statistics.data.gov.uk/doc/local-authority/30UN,Property Services,Rep & Maint Fixed Plant,2037,Annual Contract for 2020/2021 for the inspection of the Portable Fire Extinguishers and Fire Blankets at Welcome Hall Community Centre,30/09/2020,0000458586,10.00,Revenue,PENNINE FIRE & SAFETY LIMITED,00117281
South Ribble Council,http://statistics.data.gov.uk/doc/local-authority/30UN,Property Services,Rep & Maint Fixed Plant,2037,Annual Contract for 2020/2021 for the inspection of the Portable Fire Extinguishers and Fire Blankets at Worden Arts and Craft Centre,30/09/2020,0000458586,74.40,Revenue,PENNINE FIRE & SAFETY LIMITED,00117281
South Ribble Council,http://statistics.data.gov.uk/doc/local-authority/30UN,Property Services,Rep & Maint Fixed Plant,2037,Annual Service for the South Ribble Museum and Exhibition Centre 2020/2021,30/09/2020,0000458586,15.50,Revenue,PENNINE FIRE & SAFETY LIMITED,00117281
South Ribble Council,http://statistics.data.gov.uk/doc/local-authority/30UN,Area 2 - Waste Transport/Eastern & Central Teams,Printing,4127,SUPPLY & DELIVERY OF GARDEN WASTE PERMITS AS PER QUOTE 23.8.19 TO COVER JAN TO DEC 2020,04/09/2020,0000458177,895.85,Revenue,Permiserv Ltd,132447
South Ribble Council,http://statistics.data.gov.uk/doc/local-authority/30UN,Environmental Health,Professional Fees,4522,gov fee,16/09/2020,0000458751,240.00,Revenue,Personnel Checks,132574
South Ribble Council,http://statistics.data.gov.uk/doc/local-authority/30UN,Environmental Health,Professional Fees,4522,admin fee,16/09/2020,0000458751,79.98,Revenue,Personnel Checks,132574
South Ribble Council,http://statistics.data.gov.uk/doc/local-authority/30UN,Information Services,Peripherals,4243,"30 x Microsoft 365 E3 Shared Server All Language Subscription Per User - Licence @ 108.43 each, as per quote 01178025",18/09/2020,0000458846,"3,252.90",Revenue,PHOENIX SOFTWARE LTD,00064279
South Ribble Council,http://statistics.data.gov.uk/doc/local-authority/30UN,Area 2 - Waste Transport/Eastern & Central Teams,Materials General,4040,2000 litres of 10W30 engine oil @1.75 PL,16/09/2020,0000458748,"3,519.25",Revenue,PILKINGTON OILS,00113531
South Ribble Council,http://statistics.data.gov.uk/doc/local-authority/30UN,Area 2 - Waste Transport/Eastern & Central Teams,Materials General,4040,1 x 205 ltr barrel of ATF at 1.08 PL,16/09/2020,0000458748,221.40,Revenue,PILKINGTON OILS,00113531
South Ribble Council,http://statistics.data.gov.uk/doc/local-authority/30UN,Planning,Agency Fees,1121,Providing Temporary Planning Enforcement Services,25/09/2020,0000458897,"1,966.50",Revenue,Planning Control & PACE Solutions,133164
South Ribble Council,http://statistics.data.gov.uk/doc/local-authority/30UN,Area 2 - Waste Transport/Eastern & Central Teams,External Contractors Charges,4570,Spec repair PO13 UUM JFC14884,09/09/2020,0000458638,522.57,Revenue,POWERTRAIN PRODUCTS LIMITED,133046
South Ribble Council,http://statistics.data.gov.uk/doc/local-authority/30UN,Neighbourhood Admin & Support,Operational Furniture & Equip,4017,1 High back office chair NAME REDACTED,09/09/2020,0000458612,299.00,Revenue,PREMIER OFFICE SUPPLES (UK) LTD,00090159
South Ribble Council,http://statistics.data.gov.uk/doc/local-authority/30UN,Homelessness,Contributions,4730,LW Cross Street Works - New Door,25/09/2020,0000458955,811.00,Revenue,PRESTON CARE & REPAIR,130877
South Ribble Council,http://statistics.data.gov.uk/doc/local-authority/30UN,Area 2 - Waste Transport/Eastern & Central Teams,Materials General,4040,TR224,22/09/2020,0000458854,689.85,Revenue,PRESTON TYRE SPECIALISTS,00109516
South Ribble Council,http://statistics.data.gov.uk/doc/local-authority/30UN,Democratic Services,Other Misc,4970,ANNUAL CANVASS STAGE 2 DELIVERY (JOB REF 7289) (MAILING RATHER THAN HAND DELIVERY DUE TO COVID-19),11/09/2020,0000458703,"2,183.24",Revenue,PRINT IMAGE FACILITIES LLP,130734
South Ribble Council,http://statistics.data.gov.uk/doc/local-authority/30UN,Democratic Services,Printing,4127,PRINTING OF STAGE 1 CANVASS COMMUNICATIONS AND ENVELOPES (IN LINE WITH A & B ON ACKNOWLEDGEMENT) - JOB REF: 7244,02/09/2020,0000458296,"7,316.88",Revenue,PRINT IMAGE NETWORK LTD,00089199
South Ribble Council,http://statistics.data.gov.uk/doc/local-authority/30UN,Democratic Services,Printing,4127,PRINTING OF STAGE 2 CANVASS COMMUNICATIONS AND ENVELOPES (IN LINE WITH C ON ACKNOWLEDGEMENT) JOB REF: 7244,02/09/2020,0000458296,132.00,Revenue,PRINT IMAGE NETWORK LTD,00089199
South Ribble Council,http://statistics.data.gov.uk/doc/local-authority/30UN,Democratic Services,Printing,4127,PRINTING OF STAGE 4 CANVASS COMMUNICATIONS AND ENVELOPES (IN LINE WITH D ON ACKNOWLEDGEMENT) JOB REF: 7244,02/09/2020,0000458296,283.46,Revenue,PRINT IMAGE NETWORK LTD,00089199
South Ribble Council,http://statistics.data.gov.uk/doc/local-authority/30UN,Homelessness,Contributions,4730,PHG - Clare House Contribution,25/09/2020,0000458946,"1,000.00",Revenue,PROGRESS HOUSING GRP ref:DNSOU001,00030135
South Ribble Council,http://statistics.data.gov.uk/doc/local-authority/30UN,Area 3 - Parks/Leyland East West,Grounds Maint Cntrctrs Chgs,4657,"1x TJ440-1 Safety Chains, Chains and Brackets for Group Swing - 1138.54 Delivery 113.85 - total 1252.39.",02/09/2020,0000458464,"1,252.39",Revenue,PROLUDIC LTD,00083263
South Ribble Council,http://statistics.data.gov.uk/doc/local-authority/30UN,Property Services,Rep & Maint Premises,2020,works as per quote and NAME REDACTED instructions REF: INSTALL NEW HINGES  signage or barriers to prevent access,09/09/2020,0000458502,300.00,Revenue,PSR & Sons Joiners & Building Contractors,132887
South Ribble Council,http://statistics.data.gov.uk/doc/local-authority/30UN,Property Services,Rep & Maint Premises,2020,LABOUR,09/09/2020,0000458502,50.00,Revenue,PSR & Sons Joiners & Building Contractors,132887
South Ribble Council,http://statistics.data.gov.uk/doc/local-authority/30UN,Regeneration,Capital Expenditure,C230,Please undertake the ``Worden hall refurbishment project part to RIBA stage 3``,25/09/2020,0000458587,"18,800.00",Revenue,Purcell Architecture Limited,132602
South Ribble Council,http://statistics.data.gov.uk/doc/local-authority/30UN,Property Services,Rep & Maint Premises,2020,"Please carryout works as per NAME REDACTED Longton brick croft, damaged drain pipe 3meter section to be replaced. Estimated 750",16/09/2020,0000458608,350.00,Revenue,RED ROSE BUILDING MAINTENANCE,00085410
South Ribble Council,http://statistics.data.gov.uk/doc/local-authority/30UN,Property Services,Rep & Maint Premises,2020,LABOUR,16/09/2020,0000458608,400.00,Revenue,RED ROSE BUILDING MAINTENANCE,00085410
South Ribble Council,http://statistics.data.gov.uk/doc/local-authority/30UN,Property Services,Rep & Maint Premises,2020,"As per NAME REDACTED  jetting 1x gully, replacing 2x broken gully lids & one manhole lid & frame. courtyard / arts centre, worden park.",16/09/2020,0000458609,130.00,Revenue,RED ROSE BUILDING MAINTENANCE,00085410
South Ribble Council,http://statistics.data.gov.uk/doc/local-authority/30UN,Property Services,Rep & Maint Premises,2020,LABOUR,16/09/2020,0000458609,120.00,Revenue,RED ROSE BUILDING MAINTENANCE,00085410
South Ribble Council,http://statistics.data.gov.uk/doc/local-authority/30UN,Property Services,Rep & Maint Premises,2020,NAME REDACTED has instructed at Civic Centre replace and repair any broken/loose flags following the solar panel work on staff entrance,16/09/2020,0000458610,120.00,Revenue,RED ROSE BUILDING MAINTENANCE,00085410
South Ribble Council,http://statistics.data.gov.uk/doc/local-authority/30UN,Property Services,Rep & Maint Premises,2020,LABOUR,16/09/2020,0000458610,180.00,Revenue,RED ROSE BUILDING MAINTENANCE,00085410
South Ribble Council,http://statistics.data.gov.uk/doc/local-authority/30UN,Homelessness,Contributions,4730,Further 4 weeks rent (pending UC housing element) NAME REDACTED,30/09/2020,0000458997,400.00,Revenue,REDDY & CO,00108177
South Ribble Council,http://statistics.data.gov.uk/doc/local-authority/30UN,Area 3 - Parks/Leyland East West,Grounds Maint Cntrctrs Chgs,4657,"Specification of Sewage Treatment Package and Water Harvesting System, Hurst Grange Coach House, Penwortham",18/09/2020,0000458825,900.00,Revenue,Reid Jones Partnership,133147
South Ribble Council,http://statistics.data.gov.uk/doc/local-authority/30UN,Information Services,Stationery,413A,1/5/20 to 31/7/20,09/09/2020,0000458589,"3,654.26",Revenue,RICOH (UK) LTD,00082976
South Ribble Council,http://statistics.data.gov.uk/doc/local-authority/30UN,Neighbourhood Admin & Support,Materials General,4040,Trustee Amenity 5lt,02/09/2020,0000458480,432.00,Revenue,RIGBY TAYLOR LTD,00033145
South Ribble Council,http://statistics.data.gov.uk/doc/local-authority/30UN,Neighbourhood Admin & Support,Materials General,4040,Trustee Amenity 5lt,02/09/2020,0000458480,108.00,Revenue,RIGBY TAYLOR LTD,00033145
South Ribble Council,http://statistics.data.gov.uk/doc/local-authority/30UN,Area 2 - Waste Transport/Eastern & Central Teams,Materials General,4040,"Pin & Bush Kit, PJ62 UCM. JFC15200",02/09/2020,0000458333,467.72,Revenue,RTS Muni,132454
South Ribble Council,http://statistics.data.gov.uk/doc/local-authority/30UN,Area 2 - Waste Transport/Eastern & Central Teams,Materials General,4040,1000 litres Energize Premium Hi-Foaming TFR with wax (super concentrated),16/09/2020,0000458767,911.15,Revenue,Saanro International Ltd,132788
South Ribble Council,http://statistics.data.gov.uk/doc/local-authority/30UN,Development Enterprise & Comm Mgnt,Consultancy Fees,4536,R & M for 2020/2021,16/09/2020,0000458536,"14,801.50",Revenue,SERCO LEISURE (OP) LTD,00094906
South Ribble Council,http://statistics.data.gov.uk/doc/local-authority/30UN,Planning,Operational Furniture & Equip,4010,Lease rental of HP XL 3600 Wide format plotter printer,11/09/2020,0000458594,"1,015.29",Revenue,Siemens Financial Services Limited,133066
South Ribble Council,http://statistics.data.gov.uk/doc/local-authority/30UN,Legal,Legal,4821,PROFESSIONAL SERVICES IN RELATION TO NAME REDACTED V SOUTH RIBBLE BOROUGH COUNCIL AND OTHERS - JR PROCEEDINGS,16/09/2020,0000458758,"2,000.00",Revenue,Simon Pickles LandmarkChambers,132158
South Ribble Council,http://statistics.data.gov.uk/doc/local-authority/30UN,Regeneration,Capital Expenditure,C230,Works as per NAME REDACTED instruction For Topographical Revit model of Worden central buildings as per quote Q20274 (minus north lodge),30/09/2020,0000458945,"14,100.00",Revenue,Site Scan North West,133166
South Ribble Council,http://statistics.data.gov.uk/doc/local-authority/30UN,Homelessness,Contractors Charges 5,5311,SRBC placements 4 rooms 23/8/20 to 29/8/20  1400 30/08/20 to 05/09/20 1400,25/09/2020,0000458792,"1,400.00",Revenue,SMITHY LODGE GUEST HOUSE,130562
South Ribble Council,http://statistics.data.gov.uk/doc/local-authority/30UN,Homelessness,Contractors Charges 5,5311,SRBC placements 4 rooms 23/8/20 to 29/8/20  1400 30/08/20 to 05/09/20 1400,25/09/2020,0000458793,"1,400.00",Revenue,SMITHY LODGE GUEST HOUSE,130562
South Ribble Council,http://statistics.data.gov.uk/doc/local-authority/30UN,Development Enterprise & Comm Mgnt,Consultancy Fees,4532,Leisure Services Fee 2020/2021,16/09/2020,0000458003,"24,780.09",Revenue,SOUTH RIBBLE COMMUNITY LEISURE LTD,00094210
South Ribble Council,http://statistics.data.gov.uk/doc/local-authority/30UN,Development Enterprise & Comm Mgnt,Consultancy Fees,4532,Leisure Services Fee 2020/2021,16/09/2020,0000458613,"24,780.09",Revenue,SOUTH RIBBLE COMMUNITY LEISURE LTD,00094210
South Ribble Council,http://statistics.data.gov.uk/doc/local-authority/30UN,Shared Financial Services,Balance Sheet,0030,monthly deductions from payroll,11/09/2020,0000458659,"1,486.62",Revenue,SOUTH RIBBLE LABOUR PARTY LOCAL GOVERNM,00120663
South Ribble Council,http://statistics.data.gov.uk/doc/local-authority/30UN,Neighbourhood Admin & Support,Materials General,4040,price hike see notes HAND WIPES (200 TUB) - 30008,30/09/2020,0000458512,526.68,Revenue,SPALDINGS,00070849
South Ribble Council,http://statistics.data.gov.uk/doc/local-authority/30UN,Neighbourhood Admin & Support,Materials General,4040, HAND WIPES (200 TUB) - WET WIPES - 30008,04/09/2020,0000458596,526.68,Revenue,SPALDINGS,00070849
South Ribble Council,http://statistics.data.gov.uk/doc/local-authority/30UN,Shared Financial Services,Balance Sheet,0030,monthly deductions,11/09/2020,0000458670,425.32,Revenue,ST CATHERINES HOSPICE PROMOTIONS LTD,00057749
South Ribble Council,http://statistics.data.gov.uk/doc/local-authority/30UN,Neighbourhood Admin & Support,Vehicle Running Costs,3132,16000 litres diesel @ 89.06 ppl into the feeder tank at Unit 81 Bison Place-Key for cabinet available from the main office on NUMBER REDACTED,09/09/2020,0000458547,"14,252.27",Revenue,Standard Fuel Oils LtdMain,131556
South Ribble Council,http://statistics.data.gov.uk/doc/local-authority/30UN,Neighbourhood Admin & Support,Vehicle Running Costs,3132,16000 litres diesel @ 88.72 ppl into the feeder tank at Unit 81 Bison Place-Key for cabinet available from the main office on NUMBER REDACTED,18/09/2020,0000458743,"14,195.20",Revenue,Standard Fuel Oils LtdMain,131556
South Ribble Council,http://statistics.data.gov.uk/doc/local-authority/30UN,Neighbourhood Admin & Support,Vehicle Running Costs,3132,16000 litres diesel @ 86.09 ppl into the feeder tank at Unit 81 Bison Place-Key for cabinet available from main office on NUMBER REDACTED,30/09/2020,0000458899,"13,777.84",Revenue,Standard Fuel Oils LtdMain,131556
South Ribble Council,http://statistics.data.gov.uk/doc/local-authority/30UN,Neighbourhood Admin & Support,Vehicle Running Costs,3134,2500 litres gas oil @40.58ppl into tank 2,30/09/2020,0000458919,881.40,Revenue,Standard Fuel Oils LtdMain,131556
South Ribble Council,http://statistics.data.gov.uk/doc/local-authority/30UN,Property Services,Professional Fees,4510,Consultancy fees for South Ribble Borough Councils Town deal,30/09/2020,0000458968,"15,931.00",Revenue,Steer Davies & Gleave Ltd,132998
South Ribble Council,http://statistics.data.gov.uk/doc/local-authority/30UN,Healthy Communities,Capital Expenditure,C230,"Professional services in developing the Playing Pitch Hub facilities at Bamber Bridge.  FF bid, works up to planning As per NAMES REDACTED",25/09/2020,0000458835,"8,000.00",Revenue,Steve Wells Associates Ltd,133127
South Ribble Council,http://statistics.data.gov.uk/doc/local-authority/30UN,Property Services,Rep & Maint Premises,2020,Rental fees for the anti vandal canteen unit located at Penwortham Holme ref 523-037516,25/09/2020,0000458913,271.40,Revenue,Sunbelt Rentals UK Ltd,133149
South Ribble Council,http://statistics.data.gov.uk/doc/local-authority/30UN,Regeneration,Professional Fees,4510,To provide services for the  Topographical Survey of Hough Lane as detailed in your letter Ref: 20H069,30/09/2020,0000458738,"2,200.00",Revenue,SURVEY OPERATIONS LTD,00060697
South Ribble Council,http://statistics.data.gov.uk/doc/local-authority/30UN,Housing,Cap Grant- Improve Grants,C570,DFG WORK FOR BEDROOM BATHROOM ADAPTATION AS PER PLANS PROVIDED BY CUSTOMER ARCHITECT AND OT REFERRAL. ,22/09/2020,0000458918,"1,066.00",Revenue,TAYLOR NICOL BRICKWORK AND JOINERY LTD,133003
South Ribble Council,http://statistics.data.gov.uk/doc/local-authority/30UN,Housing,Cap Grant- Improve Grants,C570,DFG WORK FOR BEDROOM AND BATHROOM ADAPTATION PER PLANS PROVIDED BY CUSTOMERS ARCHITECT AND OT REFERRAL. ,30/09/2020,0000459029,"6,489.00",Revenue,TAYLOR NICOL BRICKWORK AND JOINERY LTD,133003
South Ribble Council,http://statistics.data.gov.uk/doc/local-authority/30UN,Regeneration,Other Misc,4851,"Tempo Time Credits 13,916.50 + VAT Quarter 2 2020-2021, 13,916.50 + VAT Quarter 3 2020/2021, 13,916.50 + VAT Quarter 4 2020/2021",16/09/2020,0000458637,"13,916.50",Revenue,Tempo Time Credits Ltd,133067
South Ribble Council,http://statistics.data.gov.uk/doc/local-authority/30UN,Area 2 - Waste Transport/Eastern & Central Teams,Materials General,4040,"Panel & switch, VO65 KRF, JFC (NAME REDACTED)",02/09/2020,0000458338,"1,610.97",Revenue,TERBERG MATEC UK LTD,00058625
South Ribble Council,http://statistics.data.gov.uk/doc/local-authority/30UN,Legal,Publications,4142,aldridge R69,16/09/2020,0000458807,576.00,Revenue,THOMSON REUTERS,00034979
South Ribble Council,http://statistics.data.gov.uk/doc/local-authority/30UN,Area 2 - Waste Transport/Eastern & Central Teams,Materials General,4040,4 x new tyres PN65HWJ JFC15149,18/09/2020,0000458686,290.30,Revenue,Tomlinson Road Tyres,132876
South Ribble Council,http://statistics.data.gov.uk/doc/local-authority/30UN,Property Services,Energy Costs,2303,1/8/20 to 31/8/2020,16/09/2020,0000458640,476.56,Revenue,Total Gas & power Ltd,132995
South Ribble Council,http://statistics.data.gov.uk/doc/local-authority/30UN,Property Services,Energy Costs,2307,CCL,16/09/2020,0000458640,20.35,Revenue,Total Gas & power Ltd,132995
South Ribble Council,http://statistics.data.gov.uk/doc/local-authority/30UN,Property Services,Energy Costs,2303,1/8/20 to 31/8/20,16/09/2020,0000458747,"1,305.31",Revenue,Total Gas & power Ltd,132995
South Ribble Council,http://statistics.data.gov.uk/doc/local-authority/30UN,Property Services,Energy Costs,2307,CCL,16/09/2020,0000458747,62.56,Revenue,Total Gas & power Ltd,132995
South Ribble Council,http://statistics.data.gov.uk/doc/local-authority/30UN,Property Services,Energy Costs,2303,31/7/20 to 31/,16/09/2020,0000458757,449.83,Revenue,Total Gas & power Ltd,132995
South Ribble Council,http://statistics.data.gov.uk/doc/local-authority/30UN,Property Services,Energy Costs,2307,CCL,16/09/2020,0000458757,42.46,Revenue,Total Gas & power Ltd,132995
South Ribble Council,http://statistics.data.gov.uk/doc/local-authority/30UN,Property Services,Energy Costs,2303,1/8/20 to 31/8/20,16/09/2020,0000458771,"2,436.21",Revenue,Total Gas & power Ltd,132995
South Ribble Council,http://statistics.data.gov.uk/doc/local-authority/30UN,Property Services,Energy Costs,2307,CCL,16/09/2020,0000458771,131.06,Revenue,Total Gas & power Ltd,132995
South Ribble Council,http://statistics.data.gov.uk/doc/local-authority/30UN,Property Services,Energy Costs,2303,1/8/20 to 31/8/20,16/09/2020,0000458774,"2,180.92",Revenue,Total Gas & power Ltd,132995
South Ribble Council,http://statistics.data.gov.uk/doc/local-authority/30UN,Property Services,Energy Costs,2307,CCL,16/09/2020,0000458774,121.57,Revenue,Total Gas & power Ltd,132995
South Ribble Council,http://statistics.data.gov.uk/doc/local-authority/30UN,Planning,Consultancy Fees,4541,"Viability assessment for Planning Application at Carrwood Way, Walton le Dale",11/09/2020,0000458639,"3,000.00",Revenue,Trebbi Continuum Limited,132970
South Ribble Council,http://statistics.data.gov.uk/doc/local-authority/30UN,Healthy Communities,External Contractors Charges,4575,"NAME REDACTED , Cover for 100 changed to 90 on the 30th may, I didn`t pick up the email till 31st which meant to late to change.",09/09/2020,0000458458,570.00,Revenue,UNIVERSITY OF CENTRAL LANCASHIRE,131183
South Ribble Council,http://statistics.data.gov.uk/doc/local-authority/30UN,Property Services,Operational Furniture & Equip,4012,2020 / 2021 annual contract for the monthly rental of hot drinks machines at the civic centre including environmental charge.,16/09/2020,0000458615,372.89,Revenue,VENDING ENTERPRISES,00101501
South Ribble Council,http://statistics.data.gov.uk/doc/local-authority/30UN,Property Services,Agency Fees,1121,Estates Surveyor consultancy fees for NAME REDACTED from 1st July 2020 for a period of 4 months 4 days per week,16/09/2020,0000458626,"1,571.92",Revenue,Vivid Resourcing,132999
South Ribble Council,http://statistics.data.gov.uk/doc/local-authority/30UN,Property Services,Agency Fees,1121,Estates Surveyor consultancy fees for NAME REDACTED from 1st July 2020 for a period of 4 months 4 days per week,16/09/2020,0000458734,"1,829.66",Revenue,Vivid Resourcing,132999
South Ribble Council,http://statistics.data.gov.uk/doc/local-authority/30UN,Property Services,Agency Fees,1121,Estates Surveyor consultancy fees for NAME REDACTED from 1st July 2020 for a period of 4 months 4 days per week,25/09/2020,0000458866,"1,617.49",Revenue,Vivid Resourcing,132999
South Ribble Council,http://statistics.data.gov.uk/doc/local-authority/30UN,Property Services,Agency Fees,1121,Estates Surveyor consultancy fees for NAME REDACTED from 1st July 2020 for a period of 4 months 4 days per week,30/09/2020,0000458966,"1,816.92",Revenue,Vivid Resourcing,132999
South Ribble Council,http://statistics.data.gov.uk/doc/local-authority/30UN,Information Services,Peripherals,4269,26 Aug 2020,02/09/2020,0000458485,"3,429.39",Revenue,VODAFONE RE:CABLE & WIRELESS UK,130810
South Ribble Council,http://statistics.data.gov.uk/doc/local-authority/30UN,Information Services,Peripherals,4247,01 Sept 2020,09/09/2020,0000458582,"2,404.20",Revenue,VODAFONE RE:CABLE & WIRELESS UK,130810
South Ribble Council,http://statistics.data.gov.uk/doc/local-authority/30UN,Planning,Legal,4821,Costs,25/09/2020,0000458929,"21,800.00",Revenue,WAINHOMES (NORTH WEST) LTD,00117977
South Ribble Council,http://statistics.data.gov.uk/doc/local-authority/30UN,Property Services,Water Charges,2511,,16/09/2020,0000458690,"2,664.64",Revenue,WATER PLUS,00029845
South Ribble Council,http://statistics.data.gov.uk/doc/local-authority/30UN,Legal,Legal,4821,"PROFESSIONAL SERVICES IN RELATION TO THE McKENZIE ARMS, STATION ROAD, BAMBER BRIDGE - 25 JUNE 2020 - 29 JULY 2020",16/09/2020,0000458841,421.20,Revenue,WEIGHTMANS LLP,00120867
South Ribble Council,http://statistics.data.gov.uk/doc/local-authority/30UN,Revenues Plus,Postage,4291,Revenues April to September 2020,02/09/2020,0000458542,283.57,Revenue,WHISTL  UK LTD,131310
South Ribble Council,http://statistics.data.gov.uk/doc/local-authority/30UN,Area 3 - Parks/Leyland East West,Grounds Maint Cntrctrs Chgs,4657,"Enviromental Investigation at Bellis Way Playground, Walton Park as per quotation dated 23/07/2020",22/09/2020,0000458540,"2,220.00",Revenue,WORMS EYE LIMITED,132915
South Ribble Council,http://statistics.data.gov.uk/doc/local-authority/30UN,Housing,Cap Grant- Improve Grants,C570,DFG WORKS TO BATHROOM AT ADDRESS REDACTED PER SRBC PLANS/QUOTE  YOURHOUSING TO FUND 50% ,18/09/2020,0000458858,"1,833.50",Revenue,Wright Build Limited,131203
South Ribble Council,http://statistics.data.gov.uk/doc/local-authority/30UN,Planning,Professional Fees,4510,Consultancy advice / Independent review of the drainage and flood risk elements of the planning application for the Pickerings Farm development,30/09/2020,0000458964,"1,500.00",Revenue,WSP UK Ltd,132833
South Ribble Council,http://statistics.data.gov.uk/doc/local-authority/30UN,Area 3 - Parks/Leyland East West,Grounds Maint Cntrctrs Chgs,4657,130LM of Duo 6 Gemini Surf Perimeter Fencing in PPC 7016 Anthracite Grey as per your ref. 2008021 including delivery.,25/09/2020,0000458963,"6,185.80",Revenue,ZAUN LIMITED,130123
South Ribble Council,http://statistics.data.gov.uk/doc/local-authority/30UN,Shared Assurance Services,Employee Related Insurance,1800,SRBC Lease Car Policy premium pro rata from the 1st April 2020 to 31st December.,30/09/2020,0000458362,"2,880.20",Revenue,Zurich Municipal Insurance plc,132190
